bitfinex/quotes_BTCUSD_20250928
["timestamp","ask_amount","ask_price","bid_price","bid_amount"]
[1759023887980,6.54112953,109700.0,109690.0,0.79482546]
[1759023888186,6.53818953,109700.0,109690.0,0.79482546]
[1759023888985,6.53818953,109700.0,109690.0,0.50662546]
[1759023889198,6.54112953,109700.0,109690.0,0.79482546]
[1759023891433,6.30921,109700.0,109690.0,0.79482546]
[1759023891641,6.53818953,109700.0,109690.0,0.79679546]
[1759023891891,6.53818953,109700.0,109690.0,0.79482546]
[1759023894265,6.5445817,109700.0,109690.0,0.79482546]
[1759023895266,6.3518047,109700.0,109690.0,0.79482546]
[1759023897424,6.3518047,109700.0,109690.0,0.79679546]
[1759023899566,6.12282517,109700.0,109690.0,0.79679546]
[1759023899835,6.12282517,109700.0,109690.0,1.02874499]
[1759023899836,0.02894217,109700.0,109690.0,1.02874499]
[1759023900044,0.02255,109700.0,109690.0,1.02874499]
[1759023900675,0.02255,109700.0,109690.0,1.05129499]
[1759023902347,0.02255,109700.0,109690.0,1.05125499]
[1759023902585,0.02255,109700.0,109690.0,0.91727546]
[1759023903001,0.02255,109700.0,109690.0,0.53411546]
[1759023903224,6.57752206,109700.0,109690.0,0.6124619]
[1759023903444,6.58391242,109700.0,109690.0,0.79479392]
[1759023903657,6.58391242,109700.0,109690.0,0.79475392]
[1759023904110,6.76622782,109700.0,109690.0,0.3243019]
[1759023904330,7.02307817,109700.0,109690.0,0.02965]
[1759023904555,6.79409864,109700.0,109690.0,0.02965]
[1759023904776,6.82531377,109700.0,109690.0,0.28673]
[1759023905451,6.82531377,109700.0,109690.0,0.02965]
[1759023905688,7.0542933,109700.0,109690.0,0.02965]
[1759023906202,6.82531377,109700.0,109690.0,0.02965]
[1759023906404,6.82531377,109700.0,109690.0,0.02265]
[1759023906695,6.82531377,109700.0,109690.0,0.02165]
[1759023907070,6.65547471,109700.0,109690.0,0.02165]
[1759023907274,7.11343377,109700.0,109690.0,0.02165]
[1759023908468,7.3424133,109700.0,109690.0,0.02165]
[1759023908674,7.11343377,109700.0,109690.0,0.02165]
[1759023909865,7.12773653,109700.0,109690.0,0.02165]
[1759023910519,6.38165747,109700.0,109690.0,0.02165]
[1759023910716,7.12777653,109700.0,109690.0,0.02165]
[1759023911148,6.83961653,109700.0,109690.0,0.02165]
[1759023911373,7.12777653,109700.0,109690.0,0.02165]
[1759023912794,6.83961653,109700.0,109690.0,0.02165]
[1759023912940,7.12777653,109700.0,109690.0,0.02165]
[1759023913686,6.38165747,109700.0,109690.0,0.02165]
[1759023913885,7.12777653,109700.0,109690.0,0.02165]
[1759023914775,6.83961653,109700.0,109690.0,0.02165]
[1759023915033,7.12777653,109700.0,109690.0,0.02165]
[1759023915229,6.83961653,109700.0,109690.0,0.02165]
[1759023915436,7.12777653,109700.0,109690.0,0.02165]
[1759023916185,7.11347377,109700.0,109690.0,0.02165]
[1759023916647,6.56802795,109700.0,109690.0,0.02676]
[1759023916885,6.85618795,109700.0,109690.0,0.02676]
[1759023917290,6.57000795,109700.0,109690.0,0.02676]
[1759023917492,6.85816795,109700.0,109690.0,0.02676]
[1759023918634,6.85816795,109700.0,109690.0,0.0237]
[1759023918842,6.62720842,109700.0,109690.0,0.02676]
[1759023919453,6.85618795,109700.0,109690.0,0.0449932]
[1759023919681,6.8704901,109700.0,109690.0,0.0449932]
[1759023919885,6.8724701,109700.0,109690.0,0.0237]
[1759023920864,6.5843101,109700.0,109690.0,0.0237]
[1759023923422,6.8724701,109700.0,109690.0,0.0237]
[1759023923842,6.5843101,109700.0,109690.0,0.0237]
[1759023924109,6.8724701,109700.0,109690.0,0.0419332]
[1759023925630,6.8724701,109700.0,109690.0,0.0237]
[1759023926443,6.85816795,109700.0,109690.0,0.0451532]
[1759023927164,6.38571255,109700.0,109690.0,0.0451532]
[1759023927313,6.67383255,109700.0,109690.0,0.0451532]
[1759023927742,6.67580255,109700.0,109690.0,0.0451532]
[1759023928735,6.85811795,109700.0,109690.0,0.0451532]
[1759023928942,6.67580255,109700.0,109690.0,0.0451532]
[1759023929363,6.69010446,109700.0,109690.0,0.0451532]
[1759023929962,5.9420554,109700.0,109690.0,0.22748522]
[1759023930179,5.9420554,109700.0,109690.0,0.23940392]
[1759023930384,6.17103493,109700.0,109690.0,0.26683514]
[1759023932135,6.17103493,109700.0,109690.0,0.53133514]
[1759023932346,5.9420554,109700.0,109690.0,0.53133514]
[1759023932767,5.9420554,109700.0,109690.0,0.81945514]
[1759023932968,5.93566504,109700.0,109690.0,0.81945514]
[1759023933627,5.93566504,109700.0,109690.0,0.81545514]
[1759023933957,5.93566504,109700.0,109690.0,0.53233514]
[1759023934338,5.93566504,109700.0,109690.0,0.82545514]
[1759023935423,5.93566504,109700.0,109690.0,0.53733514]
[1759023935555,5.93566504,109700.0,109690.0,0.82545514]
[1759023936383,5.92136313,109700.0,109690.0,0.82545514]
[1759023937774,5.92136313,109700.0,109690.0,0.53733514]
[1759023937958,5.92136313,109700.0,109690.0,0.82541514]
[1759023940498,5.92136313,109700.0,109690.0,0.53733514]
[1759023940717,5.92136313,109700.0,109690.0,0.82541514]
[1759023942698,5.731339,109700.0,109690.0,0.82541514]
[1759023944072,5.75773463,109700.0,109690.0,1.1306957]
[1759023944290,0.02639563,109700.0,109690.0,1.1306957]
[1759023944704,0.03721087,109710.0,109700.0,0.1823154]
[1759023945054,5.74563987,109710.0,109700.0,0.1855354]
[1759023945309,5.74563987,109710.0,109700.0,0.2121254]
[1759023945564,5.74563987,109710.0,109700.0,0.23955095]
[1759023945998,5.746104,109710.0,109700.0,0.23955095]
[1759023946727,5.746104,109710.0,109700.0,0.24255095]
[1759023947180,5.746104,109710.0,109700.0,0.50705095]
[1759023947358,5.73180313,109710.0,109700.0,0.51005095]
[1759023947921,5.73180313,109710.0,109700.0,0.79809095]
[1759023948740,5.76105565,109710.0,109700.0,0.79809095]
[1759023949640,6.06633621,109710.0,109700.0,0.24028095]
[1759023949859,5.76105565,109710.0,109700.0,0.52832095]
[1759023950283,6.25078499,109710.0,109700.0,0.37615745]
[1759023950620,6.25078499,109710.0,109700.0,0.08811745]
[1759023950834,6.25078499,109710.0,109700.0,0.37615745]
[1759023951042,6.06848621,109710.0,109700.0,0.37615745]
[1759023951256,6.25078499,109710.0,109700.0,0.37615745]
[1759023952611,6.25078499,109710.0,109700.0,0.08811745]
[1759023952798,6.25078499,109710.0,109700.0,0.37601746]
[1759023954000,5.94550443,109710.0,109700.0,0.37601746]
[1759023954254,6.25078499,109710.0,109700.0,0.37601746]
[1759023957655,6.25078499,109710.0,109700.0,0.08797746]
[1759023957862,6.25716932,109710.0,109700.0,0.37597746]
[1759023959519,6.25716932,109710.0,109700.0,0.08797746]
[1759023959723,6.25716932,109710.0,109700.0,0.37597746]
[1759023960660,6.25716932,109710.0,109700.0,0.08797746]
[1759023960837,6.25716932,109710.0,109700.0,0.37597746]
[1759023962574,6.25716932,109710.0,109700.0,0.05782556]
[1759023963008,6.54512932,109710.0,109700.0,0.34578556]
[1759023963185,6.54512932,109710.0,109700.0,0.31836001]
[1759023965842,6.54512932,109710.0,109700.0,0.03040001]
[1759023966060,6.54512932,109710.0,109700.0,0.31836001]
[1759023966472,6.54512932,109710.0,109700.0,0.03040001]
[1759023966682,6.54512932,109710.0,109700.0,0.02740001]
[1759023967110,6.54512932,109710.0,109700.0,0.02540001]
[1759023967585,6.54512932,109710.0,109700.0,0.02640001]
[1759023968723,6.54512932,109710.0,109700.0,0.02540001]
[1759023968947,6.25716932,109710.0,109700.0,0.02540001]
[1759023969168,6.54512932,109710.0,109700.0,0.02640001]
[1759023969597,6.25716932,109710.0,109700.0,0.02640001]
[1759023969797,6.54512932,109710.0,109700.0,0.02640001]
[1759023970755,6.55943033,109710.0,109700.0,0.02640001]
[1759023971162,6.27147033,109710.0,109700.0,0.02640001]
[1759023971379,5.96403977,109710.0,109700.0,0.02640001]
[1759023971577,6.55531033,109710.0,109700.0,0.03158001]
[1759023972097,6.55531033,109710.0,109700.0,0.04981155]
[1759023972868,6.26734946,109710.0,109700.0,0.04981155]
[1759023974935,5.84566302,109710.0,109700.0,0.04981155]
[1759023975155,6.04226211,109710.0,109700.0,0.04981155]
[1759023975779,6.04438211,109710.0,109700.0,0.04661155]
[1759023976257,6.08110846,109710.0,109700.0,0.04661155]
[1759023978401,6.06680815,109710.0,109700.0,0.04661155]
[1759023980530,6.06680815,109710.0,109700.0,0.02838001]
[1759023980739,6.35674815,109710.0,109700.0,0.02640001]
[1759023980930,6.35674988,109710.0,109700.0,0.02640001]
[1759023981364,6.37105019,109710.0,109700.0,0.02640001]
[1759023986549,6.35674988,109710.0,109700.0,0.02640001]
[1759023989769,6.37105079,109710.0,109700.0,0.02640001]
[1759023992461,6.08313079,109710.0,109700.0,0.02640001]
[1759023992667,6.37101079,109710.0,109700.0,0.02640001]
[1759023993070,6.08313079,109710.0,109700.0,0.02640001]
[1759023993291,6.37101079,109710.0,109700.0,0.02640001]
[1759024000083,6.36899079,109710.0,109700.0,0.02640001]
[1759024001601,6.08111079,109710.0,109700.0,0.02640001]
[1759024001811,6.36899079,109710.0,109700.0,0.02640001]
[1759024003069,6.08111079,109710.0,109700.0,0.02640001]
[1759024003286,6.36895079,109710.0,109700.0,0.02640001]
[1759024003502,6.08111079,109710.0,109700.0,0.02640001]
[1759024003726,6.36895079,109710.0,109700.0,0.02640001]
[1759024003936,6.36683079,109710.0,109700.0,0.03170001]
[1759024004352,6.36894079,109710.0,109700.0,0.03170001]
[1759024004581,6.36894079,109710.0,109700.0,0.02854001]
[1759024004784,6.52168955,109710.0,109700.0,0.02854001]
[1759024005021,6.52168955,109710.0,109700.0,0.02640001]
[1759024005576,6.52370955,109710.0,109700.0,0.02640001]
[1759024009881,6.50940864,109710.0,109700.0,0.02640001]
[1759024012836,6.52370951,109710.0,109700.0,0.02640001]
[1759024016549,6.50940864,109710.0,109700.0,0.02640001]
[1759024017382,6.50738864,109710.0,109700.0,0.02640001]
[1759024019257,6.50734864,109710.0,109700.0,0.02640001]
[1759024019459,6.52164951,109710.0,109700.0,0.02640001]
[1759024021786,6.52366951,109710.0,109700.0,0.02640001]
[1759024024414,6.52362951,109710.0,109700.0,0.02640001]
[1759024025419,6.53719946,109710.0,109700.0,0.02640001]
[1759024026297,6.53719946,109710.0,109700.0,0.02540001]
[1759024026569,6.53819946,109710.0,109700.0,0.02540001]
[1759024027012,6.53819946,109710.0,109700.0,0.02440001]
[1759024027395,6.53919946,109710.0,109700.0,0.02440001]
[1759024027542,6.76821412,109710.0,109700.0,0.02440001]
[1759024027751,6.58399324,109710.0,109700.0,0.02440001]
[1759024028679,6.59829558,109710.0,109700.0,0.02440001]
[1759024028887,0.1823819,109660.0,109650.0,0.01]
[1759024029106,5.98087702,109660.0,109650.0,0.01]
[1759024029300,6.64984634,109660.0,109650.0,0.01]
[1759024029522,6.23815168,109660.0,109650.0,0.01]
[1759024029728,6.5513572,109660.0,109650.0,0.01]
[1759024029923,6.27790549,109660.0,109650.0,0.01]
[1759024030087,6.27790549,109660.0,109650.0,0.01257413]
[1759024030296,6.56566549,109660.0,109650.0,0.01557413]
[1759024030503,6.56566549,109660.0,109650.0,0.01857413]
[1759024031115,6.56566549,109660.0,109650.0,0.04130413]
[1759024031954,6.79468015,109660.0,109650.0,0.04130413]
[1759024033797,6.50692015,109660.0,109650.0,0.04130413]
[1759024034036,6.79472015,109660.0,109650.0,0.04130413]
[1759024034694,6.56357549,109660.0,109650.0,0.04445413]
[1759024035048,6.56353808,109660.0,109650.0,0.04445413]
[1759024035614,6.56566808,109660.0,109650.0,0.04445413]
[1759024035825,6.53822256,109660.0,109650.0,0.04445413]
[1759024036227,6.25042256,109660.0,109650.0,0.04445413]
[1759024036426,6.52391427,109660.0,109650.0,0.04445413]
[1759024037478,6.52391427,109660.0,109650.0,0.04130413]
[1759024039086,6.52395427,109660.0,109650.0,0.04130413]
[1759024039315,6.52394926,109660.0,109650.0,0.04130413]
[1759024039555,6.50132134,109660.0,109650.0,0.04130413]
[1759024040729,6.50132134,109660.0,109650.0,0.03919413]
[1759024040983,6.730336,109660.0,109650.0,0.03919413]
[1759024043840,6.442496,109660.0,109650.0,0.03919413]
[1759024044260,6.730336,109660.0,109650.0,0.04122413]
[1759024045333,6.732336,109660.0,109650.0,0.03919413]
[1759024045514,6.444496,109660.0,109650.0,0.03919413]
[1759024045721,6.732336,109660.0,109650.0,0.03919413]
[1759024046483,6.71802801,109660.0,109650.0,0.03919413]
[1759024047528,6.43018801,109660.0,109650.0,0.03919413]
[1759024047741,6.71802801,109660.0,109650.0,0.03919413]
[1759024048934,6.71802801,109660.0,109650.0,0.04425413]
[1759024048935,6.02898403,109660.0,109650.0,0.04425413]
[1759024049146,5.73901403,109660.0,109650.0,0.04425413]
[1759024049427,6.49919186,109660.0,109650.0,0.04425413]
[1759024049658,6.21331186,109660.0,109650.0,0.03919413]
[1759024049872,6.50115186,109660.0,109650.0,0.04122413]
[1759024050562,6.04312254,109660.0,109650.0,0.04122413]
[1759024050787,6.50115186,109660.0,109650.0,0.03919413]
[1759024051222,6.73231652,109660.0,109650.0,0.03919413]
[1759024053047,6.73016652,109660.0,109650.0,0.03919413]
[1759024055257,6.44232652,109660.0,109650.0,0.04425413]
[1759024055486,6.73016652,109660.0,109650.0,0.04122413]
[1759024055930,6.73016652,109660.0,109650.0,0.03919413]
[1759024056554,6.48684335,109660.0,109650.0,0.03919413]
[1759024057279,6.19900335,109660.0,109650.0,0.04122413]
[1759024057611,6.48680335,109660.0,109650.0,0.04122413]
[1759024060177,6.19704335,109660.0,109650.0,0.04425413]
[1759024060386,6.48484335,109660.0,109650.0,0.04425413]
[1759024061036,6.50111166,109660.0,109650.0,0.04425413]
[1759024061349,6.49915166,109660.0,109650.0,0.04425413]
[1759024061706,6.50111166,109660.0,109650.0,0.04425413]
[1759024062154,6.50111166,109660.0,109650.0,0.04122413]
[1759024062933,5.57094044,109660.0,109650.0,0.24489252]
[1759024063109,5.85874044,109660.0,109650.0,0.22665267]
[1759024063295,5.85933589,109660.0,109650.0,0.04425413]
[1759024063704,5.85933589,109660.0,109650.0,0.22665267]
[1759024063949,5.57153589,109660.0,109650.0,0.22665267]
[1759024064152,5.85933589,109660.0,109650.0,0.22665267]
[1759024064535,5.63032123,109660.0,109650.0,0.22665267]
[1759024065202,5.93584307,109660.0,109650.0,0.22665267]
[1759024066522,5.92153476,109660.0,109650.0,0.22665267]
[1759024066732,5.61601292,109660.0,109650.0,0.22665267]
[1759024066950,5.92153476,109660.0,109650.0,0.22665267]
[1759024069008,5.61601292,109660.0,109650.0,0.22665267]
[1759024069434,5.92153476,109660.0,109650.0,0.22665267]
[1759024069669,5.93584225,109660.0,109650.0,0.22665267]
[1759024071491,5.34252041,109660.0,109650.0,0.25680457]
[1759024071674,5.63032041,109660.0,109650.0,0.25680457]
[1759024073697,5.34252041,109660.0,109650.0,0.25680457]
[1759024073907,0.02065641,109660.0,109650.0,0.54456457]
[1759024076701,0.00634892,109660.0,109650.0,0.54456457]
[1759024077662,0.42719778,109680.0,109670.0,0.18236527]
[1759024077862,5.62945584,109680.0,109670.0,0.18236527]
[1759024078138,5.62945584,109680.0,109670.0,0.20607527]
[1759024078486,5.62945584,109680.0,109670.0,0.20815527]
[1759024078824,5.62945584,109680.0,109670.0,0.02579]
[1759024079024,5.62945584,109680.0,109670.0,0.04402652]
[1759024079412,5.91721584,109680.0,109670.0,0.22639179]
[1759024079611,5.91721584,109680.0,109670.0,0.20815527]
[1759024080681,5.91721584,109680.0,109670.0,0.21115527]
[1759024080890,5.611694,109680.0,109670.0,0.21115527]
[1759024081106,5.91721584,109680.0,109670.0,0.21115527]
[1759024081302,5.93152058,109680.0,109670.0,0.21115527]
[1759024082174,5.93152058,109680.0,109670.0,0.21415527]
[1759024084777,5.73790958,109680.0,109670.0,0.21415527]
[1759024085696,5.73790958,109680.0,109670.0,0.21733527]
[1759024086813,5.73786958,109680.0,109670.0,0.21415527]
[1759024087656,5.45014958,109680.0,109670.0,0.21415527]
[1759024087875,5.14255774,109680.0,109670.0,0.21733527]
[1759024088115,5.14255774,109680.0,109670.0,0.24748717]
[1759024088328,5.128253,109680.0,109670.0,0.24748717]
[1759024090871,5.128253,109680.0,109670.0,0.53784717]
[1759024091767,5.128253,109680.0,109670.0,0.53780717]
[1759024092643,5.128253,109680.0,109670.0,0.24748717]
[1759024092847,5.128253,109680.0,109670.0,0.53776717]
[1759024094764,5.128253,109680.0,109670.0,0.53756717]
[1759024095435,5.13463297,109680.0,109670.0,0.24748717]
[1759024095636,0.00637997,109680.0,109670.0,0.53756717]
[1759024096282,0.00637997,109680.0,109670.0,0.56499982]
[1759024097172,0.00637997,109680.0,109670.0,0.56495982]
[1759024097414,0.00637997,109680.0,109670.0,0.56487982]
[1759024097628,0.00637997,109680.0,109670.0,0.27491982]
[1759024097837,0.00637997,109680.0,109670.0,0.56483982]
[1759024098706,0.00637997,109680.0,109670.0,0.27491982]
[1759024098963,0.00637997,109680.0,109670.0,0.56479982]
[1759024099996,0.00637997,109680.0,109670.0,0.27491982]
[1759024100228,0.31602181,109680.0,109670.0,0.37709455]
[1759024100469,0.31387181,109680.0,109670.0,0.26965982]
[1759024100688,0.31387181,109680.0,109670.0,0.55957982]
[1759024100885,0.31387181,109680.0,109670.0,0.37721455]
[1759024101297,0.31387181,109680.0,109670.0,0.37717455]
[1759024101528,0.31602181,109680.0,109670.0,0.64167455]
[1759024101744,0.31387181,109680.0,109670.0,0.64167455]
[1759024102589,0.31387181,109680.0,109670.0,0.53415982]
[1759024102590,0.00834997,109680.0,109670.0,0.53415982]
[1759024102793,0.31387181,109680.0,109670.0,0.53415982]
[1759024103025,0.31602181,109680.0,109670.0,0.82399982]
[1759024103513,0.49837046,109680.0,109670.0,0.05714265]
[1759024103736,5.44212481,109680.0,109670.0,0.3217]
[1759024103952,5.44212481,109680.0,109670.0,0.50406527]
[1759024104167,5.44212481,109680.0,109670.0,0.3217]
[1759024104593,5.44212481,109680.0,109670.0,0.50406527]
[1759024104772,5.44212481,109680.0,109670.0,0.3217]
[1759024104969,5.62447346,109680.0,109670.0,0.3217]
[1759024105210,5.62447346,109680.0,109670.0,0.31955]
[1759024105968,5.44212481,109680.0,109670.0,0.31955]
[1759024106958,5.44213458,109680.0,109670.0,0.31955]
[1759024108210,5.62448323,109680.0,109670.0,0.31955]
[1759024108554,5.44213458,109680.0,109670.0,0.31955]
[1759024108999,5.62448323,109680.0,109670.0,0.31955]
[1759024109992,5.40824409,109680.0,109670.0,0.31955]
[1759024110187,5.40853409,109680.0,109670.0,0.31955]
[1759024110827,5.42283793,109680.0,109670.0,0.02971]
[1759024111006,5.42283793,109680.0,109670.0,0.31943]
[1759024112473,5.42283793,109680.0,109670.0,0.31991]
[1759024112930,5.24048928,109680.0,109670.0,0.31991]
[1759024113362,5.42283793,109680.0,109670.0,0.31991]
[1759024114976,5.42283793,109680.0,109670.0,0.31979]
[1759024115816,5.42283793,109680.0,109670.0,0.02971]
[1759024116031,5.42301793,109680.0,109670.0,0.31967]
[1759024116460,5.42283793,109680.0,109670.0,0.31967]
[1759024117278,5.42283793,109680.0,109670.0,0.02971]
[1759024117495,5.40853409,109680.0,109670.0,0.31963]
[1759024117710,5.40853409,109680.0,109670.0,0.32178]
[1759024118304,5.40853409,109680.0,109670.0,0.31963]
[1759024120469,5.42283821,109680.0,109670.0,0.31963]
[1759024121281,5.42254821,109680.0,109670.0,0.32502]
[1759024121498,5.4544687,109680.0,109670.0,0.32502]
[1759024121936,5.63681735,109680.0,109670.0,0.32502]
[1759024122363,5.63710735,109680.0,109670.0,0.32502]
[1759024122766,5.63710735,109680.0,109670.0,0.32178]
[1759024126459,5.44016458,109680.0,109670.0,0.50738527]
[1759024126648,5.36373094,109680.0,109670.0,0.32502]
[1759024126853,5.54607959,109680.0,109670.0,0.32502]
[1759024127058,5.54636959,109680.0,109670.0,0.32502]
[1759024127463,5.77545779,109680.0,109670.0,0.32502]
[1759024127676,5.59281914,109680.0,109670.0,0.32502]
[1759024127878,5.36373094,109680.0,109670.0,0.32502]
[1759024128117,5.36373094,109680.0,109670.0,0.53753717]
[1759024129492,5.54636959,109680.0,109670.0,0.0620119]
[1759024129761,5.54636959,109680.0,109670.0,0.0598619]
[1759024129981,6.32192899,109680.0,109670.0,0.02971]
[1759024130427,6.34936987,109680.0,109670.0,0.02971]
[1759024130880,6.34936987,109680.0,109670.0,0.02671]
[1759024131098,6.36367528,109680.0,109670.0,0.02671]
[1759024131315,6.36367528,109680.0,109670.0,0.02771]
[1759024131542,6.36367528,109680.0,109670.0,0.02471]
[1759024132109,6.36367528,109680.0,109670.0,0.02371]
[1759024136113,6.13458708,109680.0,109670.0,0.02371]
[1759024137596,6.12028167,109680.0,109670.0,0.02371]
[1759024137961,5.37268527,109680.0,109670.0,0.02371]
[1759024138172,6.12002167,109680.0,109670.0,0.02371]
[1759024139345,6.43800134,109680.0,109670.0,0.02371]
[1759024139559,6.06012987,109680.0,109670.0,0.02371]
[1759024139810,5.83104167,109680.0,109670.0,0.02371]
[1759024140009,6.12024167,109680.0,109670.0,0.02371]
[1759024140697,5.84516747,109680.0,109670.0,0.02371]
[1759024140903,6.10640447,109680.0,109670.0,0.02371]
[1759024141114,5.81720447,109680.0,109670.0,0.02371]
[1759024141333,6.10640447,109680.0,109670.0,0.02371]
[1759024143392,6.10636447,109680.0,109670.0,0.02371]
[1759024146613,6.10616447,109680.0,109670.0,0.02371]
[1759024146823,5.17638942,109680.0,109670.0,0.02878]
[1759024147041,5.13464274,109680.0,109670.0,0.21114527]
[1759024147492,5.36373094,109680.0,109670.0,0.21114527]
[1759024148150,5.13464274,109680.0,109670.0,0.21114527]
[1759024148389,5.36373094,109680.0,109670.0,0.21114527]
[1759024148634,5.36373094,109680.0,109670.0,0.21214527]
[1759024149333,5.36373094,109680.0,109670.0,0.21414527]
[1759024149758,5.36373094,109680.0,109670.0,0.21714527]
[1759024150203,5.37803512,109680.0,109670.0,0.21714527]
[1759024150611,5.64938524,109680.0,109670.0,0.02971]
[1759024150826,6.42470464,109680.0,109670.0,0.02971]
[1759024151058,6.1063849,109680.0,109670.0,0.02971]
[1759024151274,6.3354731,109680.0,109670.0,0.02971]
[1759024151718,6.3354731,109680.0,109670.0,0.02371]
[1759024151870,6.1063849,109680.0,109670.0,0.02371]
[1759024152497,6.3354731,109680.0,109670.0,0.02371]
[1759024152819,6.42418457,109680.0,109670.0,0.02371]
[1759024153022,7.23995144,109680.0,109670.0,0.02371]
[1759024153306,6.55268684,109680.0,109670.0,0.02371]
[1759024153522,6.5530509,109680.0,109670.0,0.02371]
[1759024155053,7.2403155,109680.0,109670.0,0.02371]
[1759024155700,7.22601132,109680.0,109670.0,0.02371]
[1759024158706,7.2403189,109680.0,109670.0,0.02371]
[1759024158912,7.22601132,109680.0,109670.0,0.02371]
[1759024161925,7.24031916,109680.0,109670.0,0.02371]
[1759024162127,7.06346716,109680.0,109670.0,0.02371]
[1759024163118,7.05357626,109680.0,109670.0,0.02371]
[1759024163321,7.05995385,109680.0,109670.0,0.02371]
[1759024163973,7.05983385,109680.0,109670.0,0.02371]
[1759024164195,6.58720238,109680.0,109670.0,0.02371]
[1759024164388,6.28389778,109680.0,109670.0,0.02371]
[1759024165562,5.89993778,109680.0,109670.0,0.02371]
[1759024165778,6.28371778,109680.0,109670.0,0.02371]
[1759024165989,6.28389778,109680.0,109670.0,0.02371]
[1759024166446,6.26958994,109680.0,109670.0,0.02371]
[1759024166880,5.88562994,109680.0,109670.0,0.02371]
[1759024167092,6.26954994,109680.0,109670.0,0.02371]
[1759024169104,6.35810141,109680.0,109670.0,0.02371]
[1759024169509,6.37240911,109680.0,109670.0,0.02371]
[1759024170396,5.73509427,109680.0,109670.0,0.02905]
[1759024170617,6.05417944,109680.0,109670.0,0.02905]
[1759024170815,5.89946764,109680.0,109670.0,0.02905]
[1759024171043,6.18822764,109680.0,109670.0,0.02905]
[1759024172815,6.18851764,109680.0,109670.0,0.02905]
[1759024173621,6.27722911,109680.0,109670.0,0.02905]
[1759024173870,6.27722991,109680.0,109670.0,0.02905]
[1759024174074,6.27722991,109680.0,109670.0,0.02582]
[1759024175385,6.18851844,109680.0,109670.0,0.02371]
[1759024177013,5.21249384,109680.0,109670.0,0.02582]
[1759024177213,5.61261214,109680.0,109670.0,0.02905]
[1759024177416,5.88682444,109680.0,109670.0,0.02905]
[1759024177939,5.62862961,109680.0,109670.0,0.02905]
[1759024178106,5.91514961,109680.0,109670.0,0.02905]
[1759024178307,5.71739996,109680.0,109670.0,0.02905]
[1759024178602,5.89974861,109680.0,109670.0,0.02905]
[1759024180308,5.91405445,109680.0,109670.0,0.02905]
[1759024186548,5.89974861,109680.0,109670.0,0.02905]
[1759024188765,6.05267753,109680.0,109670.0,0.02905]
[1759024190995,6.06698337,109680.0,109670.0,0.02905]
[1759024195919,6.06727337,109680.0,109670.0,0.02905]
[1759024196492,6.05267753,109680.0,109670.0,0.02905]
[1759024200528,6.05296753,109680.0,109670.0,0.02905]
[1759024200915,6.06727337,109680.0,109670.0,0.02905]
[1759024201730,6.06698337,109680.0,109670.0,0.02905]
[1759024202176,5.45587805,109680.0,109670.0,0.02905]
[1759024202318,6.06698337,109680.0,109670.0,0.02905]
[1759024202519,5.76107071,109680.0,109670.0,0.02905]
[1759024206322,5.76103071,109680.0,109670.0,0.02905]
[1759024206590,5.75465232,109680.0,109670.0,0.02905]
[1759024206823,5.76105082,109680.0,109670.0,0.02905]
[1759024207751,5.73072565,109680.0,109670.0,0.02905]
[1759024207964,5.71641981,109680.0,109670.0,0.02905]
[1759024208422,5.74674498,109680.0,109670.0,0.02905]
[1759024208633,6.05258764,109680.0,109670.0,0.02905]
[1759024209069,6.05229764,109680.0,109670.0,0.02905]
[1759024209979,5.74674498,109680.0,109670.0,0.02905]
[1759024211159,5.76105071,109680.0,109670.0,0.02905]
[1759024211597,5.47293071,109680.0,109670.0,0.02905]
[1759024211887,5.76105071,109680.0,109670.0,0.02905]
[1759024215358,5.76134071,109680.0,109670.0,0.02582]
[1759024215781,5.76134071,109680.0,109670.0,0.02371]
[1759024215983,6.06689337,109680.0,109670.0,0.02371]
[1759024216410,6.05258764,109680.0,109670.0,0.02586]
[1759024216636,6.08002861,109680.0,109670.0,0.02894]
[1759024217066,5.77418595,109680.0,109670.0,0.02894]
[1759024219589,5.78849168,109680.0,109670.0,0.02894]
[1759024220011,6.09404434,109680.0,109670.0,0.02894]
[1759024223013,6.09433434,109680.0,109670.0,0.02894]
[1759024226386,6.08002861,109680.0,109670.0,0.02586]
[1759024227317,6.08002861,109680.0,109670.0,0.02371]
[1759024227510,5.90483661,109680.0,109670.0,0.02371]
[1759024227736,5.90479661,109680.0,109670.0,0.02882]
[1759024227939,5.90479661,109680.0,109670.0,0.02568]
[1759024228416,5.90479661,109680.0,109670.0,0.02371]
[1759024228417,5.99368808,109680.0,109670.0,0.02371]
[1759024228629,5.67745691,109680.0,109670.0,0.02371]
[1759024228830,6.06057691,109680.0,109670.0,0.02371]
[1759024229474,6.06257691,109680.0,109670.0,0.02371]
[1759024229788,6.07888406,109680.0,109670.0,0.02371]
[1759024229919,6.07488406,109680.0,109670.0,0.02371]
[1759024230134,6.07688406,109680.0,109670.0,0.02371]
[1759024230332,6.07888406,109680.0,109670.0,0.02371]
[1759024233048,6.07671006,109680.0,109670.0,0.02371]
[1759024233692,5.89436141,109680.0,109670.0,0.02371]
[1759024233892,6.07671006,109680.0,109670.0,0.02371]
[1759024234556,6.13201994,109680.0,109670.0,0.02371]
[1759024234736,5.40828534,109680.0,109670.0,0.02371]
[1759024234937,5.92435066,109680.0,109670.0,0.02371]
[1759024235101,6.01939066,109680.0,109670.0,0.02371]
[1759024236064,5.63627066,109680.0,109670.0,0.02371]
[1759024236260,6.01939066,109680.0,109670.0,0.02371]
[1759024236476,6.01938369,109680.0,109670.0,0.02371]
[1759024237696,6.09378801,109680.0,109670.0,0.02371]
[1759024238955,5.87980904,109680.0,109670.0,0.02371]
[1759024239179,5.71850168,109680.0,109670.0,0.02371]
[1759024239420,5.90085033,109680.0,109670.0,0.02371]
[1759024239782,5.81213886,109680.0,109670.0,0.02371]
[1759024243316,5.52405886,109680.0,109670.0,0.02568]
[1759024243545,5.81213886,109680.0,109670.0,0.02568]
[1759024244516,5.42901886,109680.0,109670.0,0.02882]
[1759024244731,5.71709886,109680.0,109670.0,0.02882]
[1759024245838,5.71709886,109680.0,109670.0,0.02371]
[1759024247041,5.73646924,109680.0,109670.0,0.02371]
[1759024248839,5.8129815,109680.0,109670.0,0.02371]
[1759024249906,5.8129815,109680.0,109670.0,0.02568]
[1759024251066,5.79361112,109680.0,109670.0,0.02568]
[1759024251289,5.58688404,109680.0,109670.0,0.02371]
[1759024252117,5.60119058,109680.0,109670.0,0.02371]
[1759024253908,5.60119058,109680.0,109670.0,0.02878]
[1759024254110,5.60119058,109680.0,109670.0,0.02578]
[1759024254285,5.60115058,109680.0,109670.0,0.02878]
[1759024255418,5.60111058,109680.0,109670.0,0.02878]
[1759024257777,6.37743963,109680.0,109670.0,0.02471]
[1759024258601,6.37743963,109680.0,109670.0,0.02371]
[1759024259429,6.36313309,109680.0,109670.0,0.02371]